Workbook

Sheet Cover
B6: Official Statistics Release
B7: Policy area: | C7: Initial teacher education inspections and outcomes
B8: Theme: | C8: Education, children's services and skills
B9: Published on: | C9: 27 November 2012
B10: Coverage: | C10: England
B11: Period covered: | C11: 1 September 2011 to 31 August 2012
B12: Status: | C12: FINAL
B13: Issued by: | C13: The Office for Standards in Education, Children's Services and Skills (Ofsted) 125 Kingsway London WC2B 6SE
B17: Responsible director: | C17: Susan Gregory
B18: Statistician: | C18: Anita Patel
B19: Public enquiries: | C19: enquiries@ofsted.gov.uk
B20: Press enquiries: | C20: pressenquiries@ofsted.gov.uk
B21: Link to official statistics release web page: | C21: http://www.ofsted.gov.uk/resources/official-statistics-initial-teacher-education-inspections-and-outcomes
B22: Publication medium: | C22: Ofsted website
B23: Publication frequency: | C23: Annual
B26: © Crown copyright 2012
B28: You may use and re-use this information (not including logos) free of charge in any format or medium,
B29: under the terms of the Open Government Licence.
B30: To view this licence, visit:
B31: http://www.nationalarchives.gov.uk/doc/open-government-licence/
B32: Or write to the Information Policy Team, The National Archives, Kew, London, TW9 4DU
B33: Or email:
B34: psi@nationalarchives.gsi.gov.uk

Sheet Contents
B2: Contents
B4: Tables
B6: Table 1: Number of initial teacher education providers inspected between 1 September 2011 and 31 August 2012
B8: Table 2: Inspection outcomes of initial teacher education provision inspected between 1 September 2011 and 31 August 2012
B10: Table 3: Inspection outcomes of initial teacher education provision at their most recent inspection at 31 August 2012
B12: Charts
B14: Chart 1: Overall effectiveness judgements of initial teacher education provision inspected between 1 September 2008 and 31 August 2012
B16: Chart 2: Overall effectiveness judgements of initial teacher education provision inspected between 1 September 2011 and 31 August 2012

Sheet Dates (hidden)
A1: 1 January and 31 March 2011
A2: ="January 2011" -> January 2011
A3: ="February 2011" -> February 2011
A4: ="March 2011" -> March 2011
A7: 1 January 2011 | B7: 31 January 2011
A8: 1 February 2011 | B8: 28 February 2011
A9: 1 March 2011 | B9: 31 March 2011
A10: 1 April 2011 | B10: 30 April 2011
A11: 1 May 2011 | B11: 31 May 2011
A12: 1 June 2011 | B12: 30 June 2011
A13: 1 July 2011 | B13: 31 July 2011
A14: 1 August 2011 | B14: 31 August 2011
A15: 1 September 2011 | B15: 30 September 2011
A16: 1 October 2011 | B16: 31 October 2011
A17: 1 November 2011 | B17: 30 November 2011
A18: 1 December 2011 | B18: 31 December 2011

Sheet DataPack (hidden)
A1: Table 1
C2: Quarter | D2: Month1 | H2: Month2 | M2: Month3 | R2: Qtr 3 months
C3: All | D3: Primary | E3: Secondary | F3: FE | G3: Employment | H3: All | I3: Primary | J3: Secondary | K3: FE | L3: Employment | M3: All | N3: Primary | O3: Secondary | P3: FE | Q3: Employment | R3: Primary | S3: Secondary | T3: FE | U3: Employment
A4: ITE Visits | C4: =SUM(D4:G4) -> 8 | D4: 3 | E4: 5 | F4: 0 | G4: 0 | H4: =SUM(I4:L4) -> 9 | I4: 4 | J4: 4 | K4: 1 | L4: 0 | M4: 14 | N4: 7 | O4: 7 | P4: 0 | Q4: 0 | R4: =D4+I4+N4 -> 14 | S4: =E4+J4+O4 -> 16 | T4: =F4+K4+P4 -> 1 | U4: 0
A10: Table 2
C11: Quarter | D11: Month1 | H11: Month2 | M11: Month3 | R11: Qtr 3 months
A12: List all Judgements | C12: Outstanding | D12: Good | E12: Satisfactory | F12: Inadequate | G12: Total | H12: Outstanding | I12: Good | J12: Satisfactory | K12: Inadequate | L12: Total | M12: Outstanding | N12: Good | O12: Satisfactory | P12: Inadequate | Q12: Total | R12: Outstanding | S12: Good | T12: Satisfactory | U12: Inadequate | V12: Total
A14: Overall effectiveness | C14: 6 | D14: 1 | E14: 1 | F14: 0 | G14: =SUM(C14:F14) -> 8 | H14: 6 | I14: 3 | J14: 0 | K14: 0 | L14: =SUM(H14:K14) -> 9 | M14: 6 | N14: 8 | O14: 0 | P14: 0 | Q14: =SUM(M14:P14) -> 14 | R14: =C14+H14+M14 -> 18 | S14: =D14+I14+N14 -> 12 | T14: 1 | U14: 0 | V14: 31
A15: How well do trainees attain | C15: 6 | D15: 1 | E15: 1 | F15: 0 | G15: =SUM(C15:F15) -> 8 | H15: 3 | I15: 6 | J15: 0 | K15: 0 | L15: =SUM(H15:K15) -> 9 | M15: 6 | N15: 8 | O15: 0 | P15: 0 | Q15: =SUM(M15:P15) -> 14 | R15: =C15+H15+M15 -> 15 | S15: 15 | T15: 1 | U15: 0 | V15: 31
A16: To what extent do recruitment and selection arrangement support high quality outcomes | C16: 7 | D16: 0 | E16: 1 | F16: 0 | G16: 8 | H16: 6 | I16: 2 | J16: 1 | K16: 0 | L16: 9 | M16: 9 | N16: 5 | O16: 0 | P16: 0 | Q16: 14 | R16: 22 | S16: 7 | T16: 2 | U16: 0 | V16: 31
A17: To what extent does the training and assessment ensure that all trainees progress to fulfil their potential given their ability and starting points | C17: 6 | D17: 1 | E17: 1 | F17: 0 | G17: 8 | H17: 6 | I17: 3 | J17: 0 | K17: 0 | L17: 9 | M17: 6 | N17: 8 | O17: 0 | P17: 0 | Q17: 14 | R17: 18 | S17: 12 | T17: 1 | U17: 0 | V17: 31
A18: To what extent are available resources used effectively and efficiently | C18: 6 | D18: 1 | E18: 1 | F18: 0 | G18: 8 | H18: 7 | I18: 2 | J18: 0 | K18: 0 | L18: 9 | M18: 6 | N18: 8 | O18: 0 | P18: 0 | Q18: 14 | R18: 19 | S18: 11 | T18: 1 | U18: 0 | V18: 31
A19: The quality of the provision: to what extent is the provision across the partnership of consistantly high quality? | C19: 6 | D19: 1 | E19: 1 | F19: 0 | G19: 8 | H19: 6 | I19: 3 | J19: 0 | K19: 0 | L19: 9 | M19: 6 | N19: 8 | O19: 0 | P19: 0 | Q19: 14 | R19: 18 | S19: 12 | T19: 1 | U19: 0 | V19: 31
A20: Promoting equalities and diversity: to what extent does the provision promote equality of opportunity, value diversity and eliminate harrassment and unlawful discrimination? | C20: 5 | D20: 2 | E20: 1 | F20: 0 | G20: 8 | H20: 5 | I20: 4 | J20: 0 | K20: 0 | L20: 9 | M20: 9 | N20: 5 | O20: 0 | P20: 0 | Q20: 14 | R20: 19 | S20: 11 | T20: 1 | U20: 0 | V20: 31
A21: Capacity to Improve | C21: 6 | D21: 1 | E21: 1 | F21: 0 | G21: 8 | H21: 6 | I21: 2 | J21: 1 | K21: 0 | L21: 9 | M21: 6 | N21: 8 | O21: 0 | P21: 0 | Q21: 14 | R21: 18 | S21: 11 | T21: 2 | U21: 0 | V21: 31
A22: How effectively does the management at all levels assess performance in order to improve or sustain high quality? | C22: 6 | D22: 1 | E22: 1 | F22: 0 | G22: 8 | H22: 6 | I22: 1 | J22: 2 | K22: 0 | L22: 9 | M22: 6 | N22: 8 | O22: 0 | P22: 0 | Q22: 14 | R22: 18 | S22: 10 | T22: 3 | U22: 0 | V22: 31
A23: How well does the leadership at all levels anticipate change, and prepare for and respond to national and local initiatives? | C23: 7 | D23: 0 | E23: 1 | F23: 0 | G23: 8 | H23: 7 | I23: 2 | J23: 0 | K23: 0 | L23: 9 | M23: 8 | N23: 6 | O23: 0 | P23: 0 | Q23: 14 | R23: 22 | S23: 8 | T23: 1 | U23: 0 | V23: 31
A24: How effectively does the provider plan and take action for improvement? | C24: 5 | D24: 2 | E24: 1 | F24: 0 | G24: 8 | H24: 6 | I24: 2 | J24: 1 | K24: 0 | L24: 9 | M24: 6 | N24: 8 | O24: 0 | P24: 0 | Q24: 14 | R24: 17 | S24: 12 | T24: 2 | U24: 0 | V24: 31
A26: Table 3
C27: Month1 | H27: Month2 | M27: Month3 | P27: Qtr 3 months
A28: List main five key judgements | D28: 1 | E28: 2 | F28: 3 | G28: 4 | H28: 1 | I28: 2 | J28: 3 | K28: 4 | L28: 1 | M28: 2 | N28: 3 | O28: 4 | P28: 1 | Q28: 2 | R28: 3 | S28: 4
A30: Overall effectiveness | B30: Primary | D30: 3 | E30: 0 | F30: 0 | G30: 0 | H30: 2 | I30: 2 | J30: 0 | K30: 0 | L30: 4 | M30: 3 | N30: 0 | O30: 0 | P30: =D30+H30+L30 -> 9 | Q30: 5 | R30: 0 | S30: 0
B31: Secondary | D31: 3 | E31: 1 | F31: 1 | G31: 0 | H31: 4 | I31: 0 | J31: 0 | K31: 0 | L31: 2 | M31: 5 | N31: 0 | O31: 0 | P31: 9 | Q31: 6 | R31: 1 | S31: 0
B32: FE | D32: 0 | E32: 0 | F32: 0 | G32: 0 | H32: 0 | I32: 1 | J32: 0 | K32: 0 | L32: 0 | M32: 0 | N32: 0 | O32: 0 | P32: 0 | Q32: 1 | R32: 0 | S32: 0
B33: Total | D33: =SUM(D30:D32) -> 6 | E33: 1 | F33: 1 | G33: 0 | H33: 6 | I33: 3 | J33: 0 | K33: 0 | L33: 6 | M33: 8 | N33: 0 | O33: 0 | P33: 18 | Q33: 12 | R33: 1 | S33: 0
A35: How well do trainees attain
B36: Out | D36: 3 | E36: 3 | F36: 0 | G36: 0 | H36: 1 | I36: 2 | J36: 0 | K36: 0 | L36: 4 | M36: 2 | N36: 0 | O36: 0 | P36: =D36+H36+L36 -> 8 | Q36: =E36+I36+M36 -> 7 | R36: =F36+J36+N36 -> 0 | S36: 0
B37: Good | D37: 0 | E37: 1 | F37: 0 | G37: 0 | H37: 3 | I37: 2 | J37: 1 | K37: 0 | L37: 3 | M37: 5 | N37: 0 | O37: 0 | P37: 6 | Q37: 8 | R37: 1 | S37: 0
B38: Sat | D38: 0 | E38: 1 | F38: 0 | G38: 0 | H38: 0 | I38: 0 | J38: 0 | K38: 0 | L38: 0 | M38: 0 | N38: 0 | O38: 0 | P38: 0 | Q38: 1 | R38: 0 | S38: 0
B39: Inad | D39: 0 | E39: 0 | F39: 0 | G39: 0 | H39: 0 | I39: 0 | J39: 0 | K39: 0 | L39: 0 | M39: 0 | N39: 0 | O39: 0 | P39: 0 | Q39: 0 | R39: 0 | S39: 0
B40: Total | D40: =SUM(D36:D39) -> 3 | E40: =SUM(E36:E39) -> 5 | F40: 0 | G40: 0 | H40: 4 | I40: 4 | J40: 1 | K40: 0 | L40: 7 | M40: 7 | N40: 0 | O40: 0 | P40: 14 | Q40: 16 | R40: 1 | S40: 0
A42: The quality of the provision: to what extent is the provision across the partnership of consistantly high quality?
B43: Out | D43: 3 | E43: 3 | F43: 0 | G43: 0 | H43: 2 | I43: 4 | J43: 0 | K43: 0 | L43: 4 | M43: 2 | N43: 0 | O43: 0 | P43: 9 | Q43: 9 | R43: 0 | S43: 0
B44: Good | D44: 0 | E44: 1 | F44: 0 | G44: 0 | H44: 2 | I44: 0 | J44: 1 | K44: 0 | L44: 3 | M44: 5 | N44: 0 | O44: 0 | P44: 5 | Q44: 6 | R44: 1 | S44: 0
B45: Sat | D45: 0 | E45: 1 | F45: 0 | G45: 0 | H45: 0 | I45: 0 | J45: 0 | K45: 0 | L45: 0 | M45: 0 | N45: 0 | O45: 0 | P45: 0 | Q45: 1 | R45: 0 | S45: 0
B46: Inad | D46: 0 | E46: 0 | F46: 0 | G46: 0 | H46: 0 | I46: 0 | J46: 0 | K46: 0 | L46: 0 | M46: 0 | N46: 0 | O46: 0 | P46: 0 | Q46: 0 | R46: 0 | S46: 0
B47: Total | D47: =SUM(D43:D46) -> 3 | E47: =SUM(E43:E46) -> 5 | F47: 0 | G47: 0 | H47: 4 | I47: 4 | J47: 1 | K47: 0 | L47: 7 | M47: 7 | N47: 0 | O47: 0 | P47: 14 | Q47: 16 | R47: 1 | S47: 0
A49: Promoting equalities and diversity: to what extent does the provision promote equality of opportunity, value diversity and eliminate harrassment and unlawful discrimination?
B50: Out | D50: 3 | E50: 2 | F50: 0 | G50: 0 | H50: 2 | I50: 3 | J50: 0 | K50: 0 | L50: 4 | M50: 5 | N50: 0 | O50: 0 | P50: 9 | Q50: 10 | R50: 0 | S50: 0
B51: Good | D51: 0 | E51: 2 | F51: 0 | G51: 0 | H51: 2 | I51: 1 | J51: 1 | K51: 0 | L51: 3 | M51: 2 | N51: 0 | O51: 0 | P51: 5 | Q51: 5 | R51: 1 | S51: 0
B52: Sat | D52: 0 | E52: 1 | F52: 0 | G52: 0 | H52: 0 | I52: 0 | J52: 0 | K52: 0 | L52: 0 | M52: 0 | N52: 0 | O52: 0 | P52: 0 | Q52: 1 | R52: 0 | S52: 0
B53: Inad | D53: 0 | E53: 0 | F53: 0 | G53: 0 | H53: 0 | I53: 0 | J53: 0 | K53: 0 | L53: 0 | M53: 0 | N53: 0 | O53: 0 | P53: 0 | Q53: 0 | R53: 0 | S53: 0
B54: Total | D54: =SUM(D50:D53) -> 3 | E54: =SUM(E50:E53) -> 5 | F54: 0 | G54: 0 | H54: 4 | I54: 4 | J54: 1 | K54: 0 | L54: 7 | M54: 7 | N54: 0 | O54: 0 | P54: 14 | Q54: 16 | R54: 1 | S54: 0
A56: Capacity to Improve
B57: Primary | D57: 3 | E57: 0 | F57: 0 | G57: 0 | H57: 3 | I57: 0 | J57: 1 | K57: 0 | L57: 4 | M57: 3 | N57: 0 | O57: 0 | P57: =D57+H57+L57 -> 10 | Q57: 3 | R57: 1 | S57: 0
B58: Secondary | D58: 3 | E58: 1 | F58: 1 | G58: 0 | H58: 3 | I58: 1 | J58: 0 | K58: 0 | L58: 2 | M58: 5 | N58: 0 | O58: 0 | P58: 8 | Q58: 7 | R58: 1 | S58: 0
B59: FE | D59: 0 | E59: 0 | F59: 0 | G59: 0 | H59: 0 | I59: 1 | J59: 0 | K59: 0 | L59: 0 | M59: 0 | N59: 0 | O59: 0 | P59: 0 | Q59: 1 | R59: 0 | S59: 0
B60: Total | D60: =SUM(D57:D59) -> 6 | E60: 1 | F60: 1 | G60: 0 | H60: 6 | I60: 2 | J60: 1 | K60: 0 | L60: 6 | M60: 8 | N60: 0 | O60: 0 | P60: 18 | Q60: 11 | R60: 2 | S60: 0
A62: How well does the leadership at all levels anticipate change, and prepare for and respond to national and local initiatives?
B63: Out | D63: 3 | E63: 4 | F63: 0 | G63: 0 | H63: 3 | I63: 4 | J63: 0 | K63: 0 | L63: 4 | M63: 4 | N63: 0 | O63: 0 | P63: =D63+H63+L63 -> 10 | Q63: =E63+I63+M63 -> 12 | R63: =F63+J63+N63 -> 0 | S63: 0
B64: Good | D64: 0 | E64: 0 | F64: 0 | G64: 0 | H64: 1 | I64: 0 | J64: 1 | K64: 0 | L64: 3 | M64: 3 | N64: 0 | O64: 0 | P64: =D64+H64+L64 -> 4 | Q64: =E64+I64+M64 -> 3 | R64: =F64+J64+N64 -> 1 | S64: 0
B65: Sat | D65: 0 | E65: 1 | F65: 0 | G65: 0 | H65: 0 | I65: 0 | J65: 0 | K65: 0 | L65: 0 | M65: 0 | N65: 0 | O65: 0 | P65: 0 | Q65: 1 | R65: 0 | S65: 0
B66: Inad | D66: 0 | E66: 0 | F66: 0 | G66: 0 | H66: 0 | I66: 0 | J66: 0 | K66: 0 | L66: 0 | M66: 0 | N66: 0 | O66: 0 | P66: 0 | Q66: =E66+I66+M66 -> 0 | R66: =F66+J66+N66 -> 0 | S66: 0
B67: Total | D67: =SUM(D63:D66) -> 3 | E67: 5 | F67: 0 | G67: 0 | H67: 4 | I67: 4 | J67: 1 | K67: 0 | L67: 7 | M67: 7 | N67: 0 | O67: 0 | P67: 14 | Q67: 16 | R67: 1 | S67: 0
B70: Month1 | G70: Month2 | K70: Month3 | O70: Qtr 3 months
A71: Overall effectiveness | C71: 1 | D71: 2 | E71: 3 | F71: 4 | G71: 1 | H71: 2 | I71: 3 | J71: 4 | K71: 1 | L71: 2 | M71: 3 | N71: 4 | O71: 1 | P71: 2 | Q71: 3 | R71: 4
B72: Total | C72: 6 | D72: =SUM(D73:D75) -> 1 | E72: 1 | F72: 0 | G72: 6 | H72: 3 | I72: 0 | J72: 0 | K72: 6 | L72: 8 | M72: 0 | N72: 0 | O72: =C72+G72+K72 -> 18 | P72: =D72+H72+L72 -> 12 | Q72: 1 | R72: 0
B73: Primary initial teacher education | C73: 3 | D73: 0 | E73: 0 | F73: 0 | G73: 2 | H73: 2 | I73: 0 | J73: 0 | K73: 4 | L73: 3 | M73: 0 | N73: 0 | O73: =C73+G73+K73 -> 9 | P73: 5 | Q73: 0 | R73: 0
B74: Secondary initial teacher education | C74: 3 | D74: 1 | E74: 1 | F74: 0 | G74: 4 | H74: 0 | I74: 0 | J74: 0 | K74: 2 | L74: 5 | M74: 0 | N74: 0 | O74: =C74+G74+K74 -> 9 | P74: 6 | Q74: 1 | R74: 0
B75: Further Education | C75: 0 | D75: 0 | E75: 0 | F75: 0 | G75: 0 | H75: 1 | I75: 0 | J75: 0 | K75: 0 | L75: 0 | M75: 0 | N75: 0 | O75: =C75+G75+K75 -> 0 | P75: 1 | Q75: 0 | R75: 0
A77: Capacity to Improve
B78: Total | C78: 6 | D78: =SUM(D79:D81) -> 1 | E78: 1 | F78: 0 | G78: 6 | H78: 2 | I78: 1 | J78: 0 | K78: 6 | L78: 8 | M78: 0 | N78: 0 | O78: =C78+G78+K78 -> 18 | P78: =D78+H78+L78 -> 11 | Q78: 2 | R78: =F78+J78+N78 -> 0
B79: Primary initial teacher education | C79: 3 | D79: 0 | E79: 0 | F79: 0 | G79: 3 | H79: 0 | I79: 1 | J79: 0 | K79: 4 | L79: 3 | M79: 0 | N79: 0 | O79: =C79+G79+K79 -> 10 | P79: 3 | Q79: 1 | R79: =F79+J79+N79 -> 0
B80: Secondary initial teacher education | C80: 3 | D80: 1 | E80: 1 | F80: 0 | G80: 3 | H80: 1 | I80: 0 | J80: 0 | K80: 2 | L80: 5 | M80: 0 | N80: 0 | O80: =C80+G80+K80 -> 8 | P80: 7 | Q80: 1 | R80: =F80+J80+N80 -> 0
B81: Further Education | C81: 0 | D81: 0 | E81: 0 | F81: 0 | G81: 0 | H81: 1 | I81: 0 | J81: 0 | K81: 0 | L81: 0 | M81: 0 | N81: 0 | O81: =C81+G81+K81 -> 0 | P81: 1 | Q81: 0 | R81: =F81+J81+N81 -> 0
A86: =IF($C$5=Dates!$A$1,DataPack!P30,IF($C$5=Dates!$A$2,DataPack!D30,IF($C$5=Dates!$A$3,DataPack!H30,IF($C$5=Dates!$A$4,DataPack!L30,)))) -> 0

Sheet Table 1
B2: Table 1: Number of initial teacher education providers inspected between 1 September 2011 and 31 August 2012 1
C7: Provision type
C8: Total inspections | D8: Primary initial teacher education | E8: Secondary initial teacher education | F8: Further Education | G8: Employment-based routes
B10: Initial teacher education inspections | C10: 50 | D10: 15 | E10: 14 | F10: 22 | G10: 25
F12: Source: Ofsted inspections
B13: 1. Please note that a provider can be inspected for more than one phase, resulting in more than one set of inspection judgements.

Sheet Table 2
B2: Table 2: Inspection outcomes of initial teacher education provision inspected between 1 September 2011 and 31 August 2012 1 2 3
F4: All provision | H4: Primary initial teacher education | J4: Secondary initial teacher education | L4: Further education | N4: Employment-based routes
E5: Outcome | F5: Number | G5: % | H5: Number | I5: % | J5: Number | K5: % | L5: Number | M5: % | N5: Number | O5: %
B7: Overall effectiveness | E7: Outstanding | F7: =H7+J7+L7+N7 -> 8 | G7: =F7/$F$11*100 -> 10.52631579 | H7: 3 | I7: =H7/$H$11*100 -> 20 | J7: 1 | K7: =J7/$J$11*100 -> 7.142857143 | L7: 0 | M7: =L7/$L$11*100 -> 0 | N7: 4 | O7: =N7/$N$11*100 -> 16
E8: Good | F8: =H8+J8+L8+N8 -> 55 | G8: =F8/$F$11*100 -> 72.36842105 | H8: 10 | I8: =H8/$H$11*100 -> 66.66666667 | J8: 11 | K8: =J8/$J$11*100 -> 78.57142857 | L8: 16 | M8: =L8/$L$11*100 -> 72.72727273 | N8: 18 | O8: =N8/$N$11*100 -> 72
E9: Satisfactory | F9: =H9+J9+L9+N9 -> 13 | G9: =F9/$F$11*100 -> 17.10526316 | H9: 2 | I9: =H9/$H$11*100 -> 13.33333333 | J9: 2 | K9: =J9/$J$11*100 -> 14.28571429 | L9: 6 | M9: =L9/$L$11*100 -> 27.27272727 | N9: 3 | O9: =N9/$N$11*100 -> 12
E10: Inadequate | F10: =H10+J10+L10+N10 -> 0 | G10: =F10/$F$11*100 -> 0 | H10: 0 | I10: =H10/$H$11*100 -> 0 | J10: 0 | K10: 0 | L10: 0 | M10: =L10/$L$11*100 -> 0 | N10: 0 | O10: =N10/$N$11*100 -> 0
E11: Total | F11: 76 | G11: =F11/$F$11*100 -> 100 | H11: =SUM(H7:H10) -> 15 | I11: =H11/$H$11*100 -> 100 | J11: =SUM(J7:J10) -> 14 | K11: =J11/$J$11*100 -> 100 | L11: =SUM(L8:L10) -> 22 | M11: =L11/$L$11*100 -> 100 | N11: =SUM(N7:N10) -> 25 | O11: =N11/$N$11*100 -> 100
B13: How well do trainees attain | E13: Outstanding | F13: =H13+J13+L13+N13 -> 11 | G13: =F13/$F$17*100 -> 14.47368421 | H13: 3 | I13: =H13/$H$17*100 -> 20 | J13: 1 | K13: =J13/$J$17*100 -> 7.142857143 | L13: 0 | M13: =L13/$L$17*100 -> 0 | N13: 7 | O13: =N13/$N$17*100 -> 28
E14: Good | F14: =H14+J14+L14+N14 -> 56 | G14: =F14/$F$17*100 -> 73.68421053 | H14: 10 | I14: =H14/$H$17*100 -> 66.66666667 | J14: 11 | K14: =J14/$J$17*100 -> 78.57142857 | L14: 18 | M14: =L14/$L$17*100 -> 81.81818182 | N14: 17 | O14: =N14/$N$17*100 -> 68
E15: Satisfactory | F15: =H15+J15+L15+N15 -> 9 | G15: =F15/$F$17*100 -> 11.84210526 | H15: 2 | I15: =H15/$H$17*100 -> 13.33333333 | J15: 2 | K15: =J15/$J$17*100 -> 14.28571429 | L15: 4 | M15: =L15/$L$17*100 -> 18.18181818 | N15: 1 | O15: =N15/$N$17*100 -> 4
E16: Inadequate | F16: =H16+J16+L16+N16 -> 0 | G16: =F16/$F$17*100 -> 0 | H16: 0 | I16: =H16/$H$17*100 -> 0 | J16: 0 | K16: 0 | L16: 0 | M16: =L16/$L$17*100 -> 0 | N16: 0 | O16: =N16/$N$17*100 -> 0
E17: Total | F17: 76 | G17: =F17/$F$17*100 -> 100 | H17: =SUM(H13:H16) -> 15 | I17: =H17/$H$17*100 -> 100 | J17: =SUM(J13:J16) -> 14 | K17: =J17/$J$17*100 -> 100 | L17: =SUM(L14:L16) -> 22 | M17: =L17/$L$17*100 -> 100 | N17: =SUM(N13:N16) -> 25 | O17: =N17/$N$17*100 -> 100
B19: To what extent do recruitment and selection arrangement support high quality outcomes | E19: Outstanding | F19: =H19+J19+L19+N19 -> 15 | G19: =F19/$F$23*100 -> 19.73684211 | H19: 3 | I19: =H19/$H$23*100 -> 20 | J19: 4 | K19: =J19/$J$23*100 -> 28.57142857 | L19: 0 | M19: =L19/$L$23*100 -> 0 | N19: 8 | O19: =N19/$N$23*100 -> 32
E20: Good | F20: =H20+J20+L20+N20 -> 52 | G20: =F20/$F$23*100 -> 68.42105263 | H20: 10 | I20: =H20/$H$23*100 -> 66.66666667 | J20: 8 | K20: =J20/$J$23*100 -> 57.14285714 | L20: 19 | M20: =L20/$L$23*100 -> 86.36363636 | N20: 15 | O20: =N20/$N$23*100 -> 60
E21: Satisfactory | F21: =H21+J21+L21+N21 -> 9 | G21: =F21/$F$23*100 -> 11.84210526 | H21: 2 | I21: =H21/$H$23*100 -> 13.33333333 | J21: 2 | K21: =J21/$J$23*100 -> 14.28571429 | L21: 3 | M21: =L21/$L$23*100 -> 13.63636364 | N21: 2 | O21: =N21/$N$23*100 -> 8
E22: Inadequate | F22: =H22+J22+L22+N22 -> 0 | G22: =F22/$F$23*100 -> 0 | H22: 0 | I22: =H22/$H$23*100 -> 0 | J22: 0 | K22: 0 | L22: 0 | M22: =L22/$L$23*100 -> 0 | N22: 0 | O22: =N22/$N$23*100 -> 0
E23: Total | F23: 76 | G23: =F23/$F$23*100 -> 100 | H23: =SUM(H18:H22) -> 15 | I23: =H23/$H$23*100 -> 100 | J23: =SUM(J19:J22) -> 14 | K23: =J23/$J$23*100 -> 100 | L23: =SUM(L20:L22) -> 22 | M23: =L23/$L$23*100 -> 100 | N23: =SUM(N19:N22) -> 25 | O23: =N23/$N$23*100 -> 100
B25: To what extent does the training and assessment ensure that all trainees progress to fulfil their potential given their ability and starting points | E25: Outstanding | F25: =H25+J25+L25+N25 -> 10 | G25: =F25/$F$29*100 -> 13.15789474 | H25: 3 | I25: =H25/$H$29*100 -> 20 | J25: 1 | K25: =J25/$J$29*100 -> 7.142857143 | L25: 2 | M25: =L25/$L$29*100 -> 9.090909091 | N25: 4 | O25: =N25/$N$29*100 -> 16
E26: Good | F26: =H26+J26+L26+N26 -> 57 | G26: =F26/$F$29*100 -> 75 | H26: 10 | I26: =H26/$H$29*100 -> 66.66666667 | J26: 11 | K26: =J26/$J$29*100 -> 78.57142857 | L26: 18 | M26: =L26/$L$29*100 -> 81.81818182 | N26: 18 | O26: =N26/$N$29*100 -> 72
E27: Satisfactory | F27: =H27+J27+L27+N27 -> 9 | G27: =F27/$F$29*100 -> 11.84210526 | H27: 2 | I27: =H27/$H$29*100 -> 13.33333333 | J27: 2 | K27: =J27/$J$29*100 -> 14.28571429 | L27: 2 | M27: =L27/$L$29*100 -> 9.090909091 | N27: 3 | O27: =N27/$N$29*100 -> 12
E28: Inadequate | F28: =H28+J28+L28+N28 -> 0 | G28: =F28/$F$29*100 -> 0 | H28: 0 | I28: =H28/$H$29*100 -> 0 | J28: 0 | K28: 0 | L28: 0 | M28: =L28/$L$29*100 -> 0 | N28: 0 | O28: =N28/$N$29*100 -> 0
E29: Total | F29: 76 | G29: =F29/$F$29*100 -> 100 | H29: =SUM(H25:H28) -> 15 | I29: =H29/$H$29*100 -> 100 | J29: =SUM(J25:J28) -> 14 | K29: =J29/$J$29*100 -> 100 | L29: =SUM(L25:L28) -> 22 | M29: =L29/$L$29*100 -> 100 | N29: =SUM(N25:N28) -> 25 | O29: =N29/$N$29*100 -> 100
B31: To what extent are available resources used effectively and efficiently | E31: Outstanding | F31: =H31+J31+L31+N31 -> 22 | G31: =F31/$F$35*100 -> 28.94736842 | H31: 8 | I31: =H31/$H$35*100 -> 53.33333333 | J31: 5 | K31: =J31/$J$35*100 -> 35.71428571 | L31: 3 | M31: =L31/$L$35*100 -> 13.63636364 | N31: 6 | O31: =N31/$N$35*100 -> 24
E32: Good | F32: =H32+J32+L32+N32 -> 41 | G32: =F32/$F$35*100 -> 53.94736842 | H32: 5 | I32: =H32/$H$35*100 -> 33.33333333 | J32: 7 | K32: =J32/$J$35*100 -> 50 | L32: 14 | M32: =L32/$L$35*100 -> 63.63636364 | N32: 15 | O32: =N32/$N$35*100 -> 60
E33: Satisfactory | F33: =H33+J33+L33+N33 -> 13 | G33: =F33/$F$35*100 -> 17.10526316 | H33: 2 | I33: =H33/$H$35*100 -> 13.33333333 | J33: 2 | K33: =J33/$J$35*100 -> 14.28571429 | L33: 5 | M33: =L33/$L$35*100 -> 22.72727273 | N33: 4 | O33: =N33/$N$35*100 -> 16
E34: Inadequate | F34: =H34+J34+L34+N34 -> 0 | G34: =F34/$F$35*100 -> 0 | H34: 0 | I34: =H34/$H$35*100 -> 0 | J34: 0 | K34: 0 | L34: 0 | M34: =L34/$L$35*100 -> 0 | N34: 0 | O34: =N34/$N$35*100 -> 0
E35: Total | F35: 76 | G35: =F35/$F$35*100 -> 100 | H35: =SUM(H31:H34) -> 15 | I35: =H35/$H$35*100 -> 100 | J35: =SUM(J31:J34) -> 14 | K35: =J35/$J$35*100 -> 100 | L35: =SUM(L31:L34) -> 22 | M35: =L35/$L$35*100 -> 100 | N35: =SUM(N31:N34) -> 25 | O35: =N35/$N$35*100 -> 100
B37: The quality of the provision: to what extent is the provision across the partnership of consistently high quality? | E37: Outstanding | F37: =H37+J37+L37+N37 -> 9 | G37: =F37/$F$41*100 -> 11.84210526 | H37: 3 | I37: =H37/$H$41*100 -> 20 | J37: 1 | K37: =J37/$J$41*100 -> 7.142857143 | L37: 0 | M37: =L37/$L$41*100 -> 0 | N37: 5 | O37: =N37/$N$41*100 -> 20
E38: Good | F38: =H38+J38+L38+N38 -> 55 | G38: =F38/$F$41*100 -> 72.36842105 | H38: 10 | I38: =H38/$H$41*100 -> 66.66666667 | J38: 11 | K38: =J38/$J$41*100 -> 78.57142857 | L38: 17 | M38: =L38/$L$41*100 -> 77.27272727 | N38: 17 | O38: =N38/$N$41*100 -> 68
E39: Satisfactory | F39: =H39+J39+L39+N39 -> 12 | G39: =F39/$F$41*100 -> 15.78947368 | H39: 2 | I39: =H39/$H$41*100 -> 13.33333333 | J39: 2 | K39: =J39/$J$41*100 -> 14.28571429 | L39: 5 | M39: =L39/$L$41*100 -> 22.72727273 | N39: 3 | O39: =N39/$N$41*100 -> 12
E40: Inadequate | F40: =H40+J40+L40+N40 -> 0 | G40: =F40/$F$41*100 -> 0 | H40: 0 | I40: =H40/$H$41*100 -> 0 | J40: 0 | K40: 0 | L40: 0 | M40: =L40/$L$41*100 -> 0 | N40: 0 | O40: =N40/$N$41*100 -> 0
E41: Total | F41: 76 | G41: =F41/$F$41*100 -> 100 | H41: =SUM(H37:H40) -> 15 | I41: =H41/$H$41*100 -> 100 | J41: =SUM(J37:J40) -> 14 | K41: =J41/$J$41*100 -> 100 | L41: =SUM(L38:L40) -> 22 | M41: =L41/$L$41*100 -> 100 | N41: =SUM(N37:N40) -> 25 | O41: =N41/$N$41*100 -> 100
B43: Promoting equalities and diversity: to what extent does the provision promote equality of opportunity, value diversity and eliminate harassment and unlawful discrimination? | E43: Outstanding | F43: =H43+J43+L43+N43 -> 16 | G43: =F43/$F$47*100 -> 21.05263158 | H43: 6 | I43: =H43/$H$47*100 -> 40 | J43: 2 | K43: =J43/$J$47*100 -> 14.28571429 | L43: 1 | M43: =L43/$L$47*100 -> 4.545454545 | N43: 7 | O43: =N43/$N$47*100 -> 28
E44: Good | F44: =H44+J44+L44+N44 -> 48 | G44: =F44/$F$47*100 -> 63.15789474 | H44: 7 | I44: =H44/$H$47*100 -> 46.66666667 | J44: 10 | K44: =J44/$J$47*100 -> 71.42857143 | L44: 16 | M44: =L44/$L$47*100 -> 72.72727273 | N44: 15 | O44: =N44/$N$47*100 -> 60
E45: Satisfactory | F45: =H45+J45+L45+N45 -> 12 | G45: =F45/$F$47*100 -> 15.78947368 | H45: 2 | I45: =H45/$H$47*100 -> 13.33333333 | J45: 2 | K45: =J45/$J$47*100 -> 14.28571429 | L45: 5 | M45: =L45/$L$47*100 -> 22.72727273 | N45: 3 | O45: =N45/$N$47*100 -> 12
E46: Inadequate | F46: =H46+J46+L46+N46 -> 0 | G46: =F46/$F$47*100 -> 0 | H46: 0 | I46: =H46/$H$47*100 -> 0 | J46: 0 | K46: 0 | L46: 0 | M46: =L46/$L$47*100 -> 0 | N46: 0 | O46: =N46/$N$47*100 -> 0
E47: Total | F47: =H47+J47+L47+N47 -> 76 | G47: =F47/$F$47*100 -> 100 | H47: =SUM(H43:H46) -> 15 | I47: =H47/$H$47*100 -> 100 | J47: =SUM(J43:J46) -> 14 | K47: =J47/$J$47*100 -> 100 | L47: =SUM(L43:L46) -> 22 | M47: =L47/$L$47*100 -> 100 | N47: =SUM(N43:N46) -> 25 | O47: =N47/$N$47*100 -> 100
B49: Capacity to improve | E49: Outstanding | F49: =H49+J49+L49+N49 -> 13 | G49: =F49/$F$53*100 -> 17.10526316 | H49: 4 | I49: =H49/$H$53*100 -> 26.66666667 | J49: 2 | K49: =J49/$J$53*100 -> 14.28571429 | L49: 0 | M49: =L49/$L$53*100 -> 0 | N49: 7 | O49: =N49/$N$53*100 -> 28
E50: Good | F50: =H50+J50+L50+N50 -> 47 | G50: =F50/$F$53*100 -> 61.84210526 | H50: 9 | I50: =H50/$H$53*100 -> 60 | J50: 10 | K50: =J50/$J$53*100 -> 71.42857143 | L50: 14 | M50: =L50/$L$53*100 -> 63.63636364 | N50: 14 | O50: =N50/$N$53*100 -> 56
E51: Satisfactory | F51: =H51+J51+L51+N51 -> 15 | G51: =F51/$F$53*100 -> 19.73684211 | H51: 1 | I51: =H51/$H$53*100 -> 6.666666667 | J51: 2 | K51: =J51/$J$53*100 -> 14.28571429 | L51: 8 | M51: =L51/$L$53*100 -> 36.36363636 | N51: 4 | O51: =N51/$N$53*100 -> 16
E52: Inadequate | F52: =H52+J52+L52+N52 -> 1 | G52: =F52/$F$53*100 -> 1.315789474 | H52: 1 | I52: =H52/$H$53*100 -> 6.666666667 | J52: 0 | K52: 0 | L52: 0 | M52: =L52/$L$53*100 -> 0 | N52: 0 | O52: =N52/$N$53*100 -> 0
E53: Total | F53: 76 | G53: =F53/$F$53*100 -> 100 | H53: =SUM(H49:H52) -> 15 | I53: =H53/$H$53*100 -> 100 | J53: =SUM(J49:J52) -> 14 | K53: =J53/$J$53*100 -> 100 | L53: =SUM(L49:L52) -> 22 | M53: =L53/$L$53*100 -> 100 | N53: =SUM(N49:N52) -> 25 | O53: =N53/$N$53*100 -> 100
B55: How effectively does the management at all levels assess performance in order to improve or sustain high quality? | E55: Outstanding | F55: =H55+J55+L55+N55 -> 11 | G55: =F55/$F$59*100 -> 14.47368421 | H55: 3 | I55: =H55/$H$59*100 -> 20 | J55: 1 | K55: =J55/$J$59*100 -> 7.142857143 | L55: 0 | M55: =L55/$L$59*100 -> 0 | N55: 7 | O55: =N55/$N$59*100 -> 28
E56: Good | F56: =H56+J56+L56+N56 -> 50 | G56: =F56/$F$59*100 -> 65.78947368 | H56: 10 | I56: =H56/$H$59*100 -> 66.66666667 | J56: 11 | K56: =J56/$J$59*100 -> 78.57142857 | L56: 16 | M56: =L56/$L$59*100 -> 72.72727273 | N56: 13 | O56: =N56/$N$59*100 -> 52
E57: Satisfactory | F57: =H57+J57+L57+N57 -> 14 | G57: =F57/$F$59*100 -> 18.42105263 | H57: 1 | I57: =H57/$H$59*100 -> 6.666666667 | J57: 2 | K57: =J57/$J$59*100 -> 14.28571429 | L57: 6 | M57: =L57/$L$59*100 -> 27.27272727 | N57: 5 | O57: =N57/$N$59*100 -> 20
E58: Inadequate | F58: =H58+J58+L58+N58 -> 1 | G58: =F58/$F$59*100 -> 1.315789474 | H58: 1 | I58: =H58/$H$59*100 -> 6.666666667 | J58: 0 | K58: 0 | L58: 0 | M58: =L58/$L$59*100 -> 0 | N58: 0 | O58: =N58/$N$59*100 -> 0
E59: Total | F59: 76 | G59: =F59/$F$59*100 -> 100 | H59: =SUM(H55:H58) -> 15 | I59: =H59/$H$59*100 -> 100 | J59: =SUM(J55:J58) -> 14 | K59: =J59/$J$59*100 -> 100 | L59: =SUM(L55:L58) -> 22 | M59: =L59/$L$59*100 -> 100 | N59: =SUM(N55:N58) -> 25 | O59: =N59/$N$59*100 -> 100
B61: How well does the leadership at all levels anticipate change, and prepare for and respond to national and local initiatives? | E61: Outstanding | F61: =H61+J61+L61+N61 -> 26 | G61: =F61/$F$65*100 -> 34.21052632 | H61: 8 | I61: =H61/$H$65*100 -> 53.33333333 | J61: 6 | K61: =J61/$J$65*100 -> 42.85714286 | L61: 3 | M61: =L61/$L$65*100 -> 13.63636364 | N61: 9 | O61: =N61/$N$65*100 -> 36
E62: Good | F62: =H62+J62+L62+N62 -> 37 | G62: =F62/$F$65*100 -> 48.68421053 | H62: 5 | I62: =H62/$H$65*100 -> 33.33333333 | J62: 6 | K62: =J62/$J$65*100 -> 42.85714286 | L62: 13 | M62: =L62/$L$65*100 -> 59.09090909 | N62: 13 | O62: =N62/$N$65*100 -> 52
E63: Satisfactory | F63: =H63+J63+L63+N63 -> 12 | G63: =F63/$F$65*100 -> 15.78947368 | H63: 1 | I63: =H63/$H$65*100 -> 6.666666667 | J63: 2 | K63: =J63/$J$65*100 -> 14.28571429 | L63: 6 | M63: =L63/$L$65*100 -> 27.27272727 | N63: 3 | O63: =N63/$N$65*100 -> 12
E64: Inadequate | F64: =H64+J64+L64+N64 -> 1 | G64: =F64/$F$65*100 -> 1.315789474 | H64: 1 | I64: =H64/$H$65*100 -> 6.666666667 | J64: 0 | K64: 0 | L64: 0 | M64: =L64/$L$65*100 -> 0 | N64: 0 | O64: =N64/$N$65*100 -> 0
E65: Total | F65: 76 | G65: =F65/$F$65*100 -> 100 | H65: =SUM(H61:H64) -> 15 | I65: =H65/$H$65*100 -> 100 | J65: =SUM(J61:J64) -> 14 | K65: =J65/$J$65*100 -> 100 | L65: =SUM(L61:L64) -> 22 | M65: =L65/$L$65*100 -> 100 | N65: =SUM(N61:N64) -> 25 | O65: =N65/$N$65*100 -> 100
B67: How effectively does the provider plan and take action for improvement? | E67: Outstanding | F67: =H67+J67+L67+N67 -> 14 | G67: =F67/$F$71*100 -> 18.42105263 | H67: 4 | I67: =H67/$H$71*100 -> 26.66666667 | J67: 2 | K67: =J67/$J$71*100 -> 14.28571429 | L67: 0 | M67: =L67/$L$71*100 -> 0 | N67: 8 | O67: =N67/$N$71*100 -> 32
E68: Good | F68: =H68+J68+L68+N68 -> 46 | G68: =F68/$F$71*100 -> 60.52631579 | H68: 9 | I68: =H68/$H$71*100 -> 60 | J68: 10 | K68: =J68/$J$71*100 -> 71.42857143 | L68: 14 | M68: =L68/$L$71*100 -> 63.63636364 | N68: 13 | O68: =N68/$N$71*100 -> 52
E69: Satisfactory | F69: =H69+J69+L69+N69 -> 15 | G69: =F69/$F$71*100 -> 19.73684211 | H69: 1 | I69: =H69/$H$71*100 -> 6.666666667 | J69: 2 | K69: =J69/$J$71*100 -> 14.28571429 | L69: 8 | M69: =L69/$L$71*100 -> 36.36363636 | N69: 4 | O69: =N69/$N$71*100 -> 16
E70: Inadequate | F70: =H70+J70+L70+N70 -> 1 | G70: =F70/$F$71*100 -> 1.315789474 | H70: 1 | I70: =H70/$H$71*100 -> 6.666666667 | J70: 0 | K70: 0 | L70: 0 | M70: =L70/$L$71*100 -> 0 | N70: 0 | O70: =N70/$N$71*100 -> 0
E71: Total | F71: 76 | G71: =F71/$F$71*100 -> 100 | H71: =SUM(H67:H70) -> 15 | I71: =H71/$H$71*100 -> 100 | J71: =SUM(J67:J70) -> 14 | K71: =J71/$J$71*100 -> 100 | L71: =SUM(L67:L70) -> 22 | M71: =L71/$L$71*100 -> 100 | N71: =SUM(N67:N70) -> 25 | O71: =N71/$N$71*100 -> 100
N72: Source: Ofsted inspections
B73: 1. Percentages are rounded and may not add to 100.
B74: 2. Please note that a provider can be inspected for more than one phase, resulting in more than one set of inspection judgements.
B75: 3. Where the number of inspections is small, percentages should be treated with caution.

Sheet Table 3
B2: Table 3: Inspection outcomes of initial teacher education provision at their most recent inspection at 31 August 2012 1 2 3 4
F4: All provision | H4: Primary initial teacher education | J4: Secondary initial teacher education | L4: Further education | N4: Employment-based routes
E5: Outcome | F5: Number | G5: % | H5: Number | I5: % | J5: Number | K5: % | L5: Number | M5: % | N5: Number | O5: %
B7: Overall effectiveness | E7: Outstanding | F7: 112 | G7: =F7/$F$11*100 -> 33.23442136 | H7: 46 | I7: =H7/$H$11*100 -> 50.54945055 | J7: 42 | K7: =J7/$J$11*100 -> 42 | L7: 3 | M7: =L7/$L$11*100 -> 6.382978723 | N7: 21 | O7: =N7/$N$11*100 -> 21.21212121
E8: Good | F8: 208 | G8: =F8/$F$11*100 -> 61.72106825 | H8: 43 | I8: =H8/$H$11*100 -> 47.25274725 | J8: 54 | K8: =J8/$J$11*100 -> 54 | L8: 37 | M8: =L8/$L$11*100 -> 78.72340426 | N8: 74 | O8: =N8/$N$11*100 -> 74.74747475
E9: Satisfactory | F9: 17 | G9: =F9/$F$11*100 -> 5.044510386 | H9: 2 | I9: =H9/$H$11*100 -> 2.197802198 | J9: 4 | K9: =J9/$J$11*100 -> 4 | L9: 7 | M9: =L9/$L$11*100 -> 14.89361702 | N9: 4 | O9: =N9/$N$11*100 -> 4.04040404
E10: Inadequate | F10: 0 | G10: =F10/$F$11*100 -> 0 | H10: 0 | I10: =H10/$H$11*100 -> 0 | J10: 0 | K10: 0 | L10: 0 | M10: =L10/$L$11*100 -> 0 | N10: 0 | O10: =N10/$N$11*100 -> 0
E11: Total | F11: =SUM(F7:F10) -> 337 | G11: =F11/$F$11*100 -> 100 | H11: =SUM(H7:H10) -> 91 | I11: =H11/$H$11*100 -> 100 | J11: =SUM(J7:J10) -> 100 | K11: =J11/$J$11*100 -> 100 | L11: =SUM(L7:L10) -> 47 | M11: =L11/$L$11*100 -> 100 | N11: =SUM(N7:N10) -> 99 | O11: =N11/$N$11*100 -> 100
B13: How well do trainees attain 4 | E13: Outstanding | F13: 75 | G13: =F13/$F$17*100 -> 22.52252252 | H13: 29 | I13: =H13/$H$17*100 -> 32.22222222 | J13: 26 | K13: =J13/$J$17*100 -> 26 | L13: 2 | M13: =L13/$L$17*100 -> 4.347826087 | N13: 18 | O13: =N13/$N$17*100 -> 18.55670103
E14: Good | F14: 241 | G14: =F14/$F$17*100 -> 72.37237237 | H14: 59 | I14: =H14/$H$17*100 -> 65.55555556 | J14: 69 | K14: =J14/$J$17*100 -> 69 | L14: 36 | M14: =L14/$L$17*100 -> 78.26086957 | N14: 77 | O14: =N14/$N$17*100 -> 79.3814433
E15: Satisfactory | F15: 17 | G15: =F15/$F$17*100 -> 5.105105105 | H15: 2 | I15: =H15/$H$17*100 -> 2.222222222 | J15: 5 | K15: =J15/$J$17*100 -> 5 | L15: 8 | M15: =L15/$L$17*100 -> 17.39130435 | N15: 2 | O15: =N15/$N$17*100 -> 2.06185567
E16: Inadequate | F16: 0 | G16: =F16/$F$17*100 -> 0 | H16: 0 | I16: =H16/$H$17*100 -> 0 | J16: 0 | K16: 0 | L16: 0 | M16: =L16/$L$17*100 -> 0 | N16: 0 | O16: =N16/$N$17*100 -> 0
E17: Total | F17: =SUM(F13:F16) -> 333 | G17: =F17/$F$17*100 -> 100 | H17: =SUM(H13:H16) -> 90 | I17: =H17/$H$17*100 -> 100 | J17: =SUM(J13:J16) -> 100 | K17: =J17/$J$17*100 -> 100 | L17: =SUM(L13:L16) -> 46 | M17: =L17/$L$17*100 -> 100 | N17: =SUM(N13:N16) -> 97 | O17: =N17/$N$17*100 -> 100
B19: To what extent do recruitment and selection arrangement support high quality outcomes | E19: Outstanding | F19: 146 | G19: =F19/$F$23*100 -> 43.32344214 | H19: 48 | I19: =H19/$H$23*100 -> 52.74725275 | J19: 52 | K19: =J19/$J$23*100 -> 52 | L19: 2 | M19: =L19/$L$23*100 -> 4.255319149 | N19: 44 | O19: =N19/$N$23*100 -> 44.44444444
E20: Good | F20: 173 | G20: =F20/$F$23*100 -> 51.33531157 | H20: 39 | I20: =H20/$H$23*100 -> 42.85714286 | J20: 42 | K20: =J20/$J$23*100 -> 42 | L20: 40 | M20: =L20/$L$23*100 -> 85.10638298 | N20: 52 | O20: =N20/$N$23*100 -> 52.52525253
E21: Satisfactory | F21: 18 | G21: =F21/$F$23*100 -> 5.341246291 | H21: 4 | I21: =H21/$H$23*100 -> 4.395604396 | J21: 6 | K21: =J21/$J$23*100 -> 6 | L21: 5 | M21: =L21/$L$23*100 -> 10.63829787 | N21: 3 | O21: =N21/$N$23*100 -> 3.03030303
E22: Inadequate | F22: 0 | G22: =F22/$F$23*100 -> 0 | H22: 0 | I22: =H22/$H$23*100 -> 0 | J22: 0 | K22: 0 | L22: 0 | M22: =L22/$L$23*100 -> 0 | N22: 0 | O22: =N22/$N$23*100 -> 0
E23: Total | F23: =SUM(F19:F22) -> 337 | G23: =F23/$F$23*100 -> 100 | H23: =SUM(H19:H22) -> 91 | I23: =H23/$H$23*100 -> 100 | J23: =SUM(J19:J22) -> 100 | K23: =J23/$J$23*100 -> 100 | L23: =SUM(L19:L22) -> 47 | M23: =L23/$L$23*100 -> 100 | N23: =SUM(N19:N22) -> 99 | O23: =N23/$N$23*100 -> 100
B25: To what extent does the training and assessment ensure that all trainees progress to fulfil their potential given their ability and starting points | E25: Outstanding | F25: 123 | G25: =F25/$F$29*100 -> 36.49851632 | H25: 46 | I25: =H25/$H$29*100 -> 50.54945055 | J25: 45 | K25: =J25/$J$29*100 -> 45 | L25: 5 | M25: =L25/$L$29*100 -> 10.63829787 | N25: 27 | O25: =N25/$N$29*100 -> 27.27272727
E26: Good | F26: 202 | G26: =F26/$F$29*100 -> 59.94065282 | H26: 43 | I26: =H26/$H$29*100 -> 47.25274725 | J26: 52 | K26: =J26/$J$29*100 -> 52 | L26: 39 | M26: =L26/$L$29*100 -> 82.9787234 | N26: 68 | O26: =N26/$N$29*100 -> 68.68686869
E27: Satisfactory | F27: 12 | G27: =F27/$F$29*100 -> 3.560830861 | H27: 2 | I27: =H27/$H$29*100 -> 2.197802198 | J27: 3 | K27: =J27/$J$29*100 -> 3 | L27: 3 | M27: =L27/$L$29*100 -> 6.382978723 | N27: 4 | O27: =N27/$N$29*100 -> 4.04040404
E28: Inadequate | F28: 0 | G28: =F28/$F$29*100 -> 0 | H28: 0 | I28: =H28/$H$29*100 -> 0 | J28: 0 | K28: 0 | L28: 0 | M28: =L28/$L$29*100 -> 0 | N28: 0 | O28: =N28/$N$29*100 -> 0
E29: Total | F29: =SUM(F25:F28) -> 337 | G29: =F29/$F$29*100 -> 100 | H29: =SUM(H25:H28) -> 91 | I29: =H29/$H$29*100 -> 100 | J29: =SUM(J25:J28) -> 100 | K29: =J29/$J$29*100 -> 100 | L29: =SUM(L25:L28) -> 47 | M29: =L29/$L$29*100 -> 100 | N29: =SUM(N25:N28) -> 99 | O29: =N29/$N$29*100 -> 100
B31: To what extent are available resources used effectively and efficiently | E31: Outstanding | F31: 182 | G31: =F31/$F$35*100 -> 54.00593472 | H31: 59 | I31: =H31/$H$35*100 -> 64.83516484 | J31: 60 | K31: =J31/$J$35*100 -> 60 | L31: 12 | M31: =L31/$L$35*100 -> 25.53191489 | N31: 51 | O31: =N31/$N$35*100 -> 51.51515152
E32: Good | F32: 138 | G32: =F32/$F$35*100 -> 40.9495549 | H32: 30 | I32: =H32/$H$35*100 -> 32.96703297 | J32: 36 | K32: =J32/$J$35*100 -> 36 | L32: 29 | M32: =L32/$L$35*100 -> 61.70212766 | N32: 43 | O32: =N32/$N$35*100 -> 43.43434343
E33: Satisfactory | F33: 17 | G33: =F33/$F$35*100 -> 5.044510386 | H33: 2 | I33: =H33/$H$35*100 -> 2.197802198 | J33: 4 | K33: =J33/$J$35*100 -> 4 | L33: 6 | M33: =L33/$L$35*100 -> 12.76595745 | N33: 5 | O33: =N33/$N$35*100 -> 5.050505051
E34: Inadequate | F34: 0 | G34: =F34/$F$35*100 -> 0 | H34: 0 | I34: =H34/$H$35*100 -> 0 | J34: 0 | K34: 0 | L34: 0 | M34: =L34/$L$35*100 -> 0 | N34: 0 | O34: =N34/$N$35*100 -> 0
E35: Total | F35: =SUM(F31:F34) -> 337 | G35: =F35/$F$35*100 -> 100 | H35: =SUM(H31:H34) -> 91 | I35: =H35/$H$35*100 -> 100 | J35: =SUM(J31:J34) -> 100 | K35: =J35/$J$35*100 -> 100 | L35: =SUM(L31:L34) -> 47 | M35: =L35/$L$35*100 -> 100 | N35: =SUM(N31:N34) -> 99 | O35: =N35/$N$35*100 -> 100
B37: The quality of the provision: to what extent is the provision across the partnership of consistently high quality? | E37: Outstanding | F37: 122 | G37: =F37/$F$41*100 -> 36.20178042 | H37: 49 | I37: =H37/$H$41*100 -> 53.84615385 | J37: 44 | K37: =J37/$J$41*100 -> 44 | L37: 3 | M37: =L37/$L$41*100 -> 6.382978723 | N37: 26 | O37: =N37/$N$41*100 -> 26.26262626
E38: Good | F38: 199 | G38: =F38/$F$41*100 -> 59.0504451 | H38: 40 | I38: =H38/$H$41*100 -> 43.95604396 | J38: 52 | K38: =J38/$J$41*100 -> 52 | L38: 38 | M38: =L38/$L$41*100 -> 80.85106383 | N38: 69 | O38: =N38/$N$41*100 -> 69.6969697
E39: Satisfactory | F39: 16 | G39: =F39/$F$41*100 -> 4.747774481 | H39: 2 | I39: =H39/$H$41*100 -> 2.197802198 | J39: 4 | K39: =J39/$J$41*100 -> 4 | L39: 6 | M39: =L39/$L$41*100 -> 12.76595745 | N39: 4 | O39: =N39/$N$41*100 -> 4.04040404
E40: Inadequate | F40: 0 | G40: =F40/$F$41*100 -> 0 | H40: 0 | I40: =H40/$H$41*100 -> 0 | J40: 0 | K40: 0 | L40: 0 | M40: =L40/$L$41*100 -> 0 | N40: 0 | O40: =N40/$N$41*100 -> 0
E41: Total | F41: =SUM(F37:F40) -> 337 | G41: =F41/$F$41*100 -> 100 | H41: =SUM(H37:H40) -> 91 | I41: =H41/$H$41*100 -> 100 | J41: =SUM(J37:J40) -> 100 | K41: =J41/$J$41*100 -> 100 | L41: =SUM(L37:L40) -> 47 | M41: =L41/$L$41*100 -> 100 | N41: =SUM(N37:N40) -> 99 | O41: =N41/$N$41*100 -> 100
B43: Promoting equalities and diversity: to what extent does the provision promote equality of opportunity, value diversity and eliminate harassment and unlawful discrimination? | E43: Outstanding | F43: 150 | G43: =F43/$F$47*100 -> 44.51038576 | H43: 55 | I43: =H43/$H$47*100 -> 60.43956044 | J43: 48 | K43: =J43/$J$47*100 -> 48 | L43: 6 | M43: =L43/$L$47*100 -> 12.76595745 | N43: 41 | O43: =N43/$N$47*100 -> 41.41414141
E44: Good | F44: 168 | G44: =F44/$F$47*100 -> 49.85163205 | H44: 33 | I44: =H44/$H$47*100 -> 36.26373626 | J44: 49 | K44: =J44/$J$47*100 -> 49 | L44: 33 | M44: =L44/$L$47*100 -> 70.21276596 | N44: 53 | O44: =N44/$N$47*100 -> 53.53535354
E45: Satisfactory | F45: 19 | G45: =F45/$F$47*100 -> 5.637982196 | H45: 3 | I45: =H45/$H$47*100 -> 3.296703297 | J45: 3 | K45: =J45/$J$47*100 -> 3 | L45: 8 | M45: =L45/$L$47*100 -> 17.0212766 | N45: 5 | O45: =N45/$N$47*100 -> 5.050505051
E46: Inadequate | F46: 0 | G46: =F46/$F$47*100 -> 0 | H46: 0 | I46: =H46/$H$47*100 -> 0 | J46: 0 | K46: 0 | L46: 0 | M46: =L46/$L$47*100 -> 0 | N46: 0 | O46: =N46/$N$47*100 -> 0
E47: Total | F47: =SUM(F43:F46) -> 337 | G47: =F47/$F$47*100 -> 100 | H47: =SUM(H43:H46) -> 91 | I47: =H47/$H$47*100 -> 100 | J47: =SUM(J43:J46) -> 100 | K47: =J47/$J$47*100 -> 100 | L47: =SUM(L43:L46) -> 47 | M47: =L47/$L$47*100 -> 100 | N47: =SUM(N43:N46) -> 99 | O47: =N47/$N$47*100 -> 100
B49: Capacity to improve | E49: Outstanding | F49: 136 | G49: =F49/$F$53*100 -> 40.35608309 | H49: 51 | I49: =H49/$H$53*100 -> 56.04395604 | J49: 48 | K49: =J49/$J$53*100 -> 48 | L49: 3 | M49: =L49/$L$53*100 -> 6.382978723 | N49: 34 | O49: =N49/$N$53*100 -> 34.34343434
E50: Good | F50: 179 | G50: =F50/$F$53*100 -> 53.115727 | H50: 38 | I50: =H50/$H$53*100 -> 41.75824176 | J50: 48 | K50: =J50/$J$53*100 -> 48 | L50: 34 | M50: =L50/$L$53*100 -> 72.34042553 | N50: 59 | O50: =N50/$N$53*100 -> 59.5959596
E51: Satisfactory | F51: 20 | G51: =F51/$F$53*100 -> 5.934718101 | H51: 1 | I51: =H51/$H$53*100 -> 1.098901099 | J51: 3 | K51: =J51/$J$53*100 -> 3 | L51: 10 | M51: =L51/$L$53*100 -> 21.27659574 | N51: 6 | O51: =N51/$N$53*100 -> 6.060606061
E52: Inadequate | F52: 2 | G52: =F52/$F$53*100 -> 0.5934718101 | H52: 1 | I52: =H52/$H$53*100 -> 1.098901099 | J52: 1 | K52: 0 | L52: 0 | M52: =L52/$L$53*100 -> 0 | N52: 0 | O52: =N52/$N$53*100 -> 0
E53: Total | F53: =SUM(F49:F52) -> 337 | G53: =F53/$F$53*100 -> 100 | H53: =SUM(H49:H52) -> 91 | I53: =H53/$H$53*100 -> 100 | J53: =SUM(J49:J52) -> 100 | K53: =J53/$J$53*100 -> 100 | L53: =SUM(L49:L52) -> 47 | M53: =L53/$L$53*100 -> 100 | N53: =SUM(N49:N52) -> 99 | O53: =N53/$N$53*100 -> 100
B55: How effectively does the management at all levels assess performance in order to improve or sustain high quality? | E55: Outstanding | F55: 136 | G55: =F55/$F$59*100 -> 40.35608309 | H55: 50 | I55: =H55/$H$59*100 -> 54.94505495 | J55: 46 | K55: =J55/$J$59*100 -> 46 | L55: 3 | M55: =L55/$L$59*100 -> 6.382978723 | N55: 37 | O55: =N55/$N$59*100 -> 37.37373737
E56: Good | F56: 177 | G56: =F56/$F$59*100 -> 52.52225519 | H56: 39 | I56: =H56/$H$59*100 -> 42.85714286 | J56: 49 | K56: =J56/$J$59*100 -> 49 | L56: 34 | M56: =L56/$L$59*100 -> 72.34042553 | N56: 55 | O56: =N56/$N$59*100 -> 55.55555556
E57: Satisfactory | F57: 22 | G57: =F57/$F$59*100 -> 6.528189911 | H57: 1 | I57: =H57/$H$59*100 -> 1.098901099 | J57: 4 | K57: =J57/$J$59*100 -> 4 | L57: 10 | M57: =L57/$L$59*100 -> 21.27659574 | N57: 7 | O57: =N57/$N$59*100 -> 7.070707071
E58: Inadequate | F58: 2 | G58: =F58/$F$59*100 -> 0.5934718101 | H58: 1 | I58: =H58/$H$59*100 -> 1.098901099 | J58: 1 | K58: 0 | L58: 0 | M58: =L58/$L$59*100 -> 0 | N58: 0 | O58: =N58/$N$59*100 -> 0
E59: Total | F59: =SUM(F55:F58) -> 337 | G59: =F59/$F$59*100 -> 100 | H59: =SUM(H55:H58) -> 91 | I59: =H59/$H$59*100 -> 100 | J59: =SUM(J55:J58) -> 100 | K59: =J59/$J$59*100 -> 100 | L59: =SUM(L55:L58) -> 47 | M59: =L59/$L$59*100 -> 100 | N59: =SUM(N55:N58) -> 99 | O59: =N59/$N$59*100 -> 100
B61: How well does the leadership at all levels anticipate change, and prepare for and respond to national and local initiatives? | E61: Outstanding | F61: 187 | G61: =F61/$F$65*100 -> 55.48961424 | H61: 64 | I61: =H61/$H$65*100 -> 70.32967033 | J61: 65 | K61: =J61/$J$65*100 -> 65 | L61: 10 | M61: =L61/$L$65*100 -> 21.27659574 | N61: 48 | O61: =N61/$N$65*100 -> 48.48484848
E62: Good | F62: 132 | G62: =F62/$F$65*100 -> 39.16913947 | H62: 25 | I62: =H62/$H$65*100 -> 27.47252747 | J62: 30 | K62: =J62/$J$65*100 -> 30 | L62: 31 | M62: =L62/$L$65*100 -> 65.95744681 | N62: 46 | O62: =N62/$N$65*100 -> 46.46464646
E63: Satisfactory | F63: 17 | G63: =F63/$F$65*100 -> 5.044510386 | H63: 1 | I63: =H63/$H$65*100 -> 1.098901099 | J63: 5 | K63: =J63/$J$65*100 -> 5 | L63: 6 | M63: =L63/$L$65*100 -> 12.76595745 | N63: 5 | O63: =N63/$N$65*100 -> 5.050505051
E64: Inadequate | F64: 1 | G64: =F64/$F$65*100 -> 0.296735905 | H64: 1 | I64: =H64/$H$65*100 -> 1.098901099 | J64: 0 | K64: 0 | L64: 0 | M64: =L64/$L$65*100 -> 0 | N64: 0 | O64: =N64/$N$65*100 -> 0
E65: Total | F65: =SUM(F61:F64) -> 337 | G65: =F65/$F$65*100 -> 100 | H65: =SUM(H61:H64) -> 91 | I65: =H65/$H$65*100 -> 100 | J65: =SUM(J61:J64) -> 100 | K65: =J65/$J$65*100 -> 100 | L65: =SUM(L61:L64) -> 47 | M65: =L65/$L$65*100 -> 100 | N65: =SUM(N61:N64) -> 99 | O65: =N65/$N$65*100 -> 100
B67: How effectively does the provider plan and take action for improvement? | E67: Outstanding | F67: 126 | G67: =F67/$F$71*100 -> 37.38872404 | H67: 48 | I67: =H67/$H$71*100 -> 52.74725275 | J67: 41 | K67: =J67/$J$71*100 -> 41 | L67: 3 | M67: =L67/$L$71*100 -> 6.382978723 | N67: 34 | O67: =N67/$N$71*100 -> 34.34343434
E68: Good | F68: 186 | G68: =F68/$F$71*100 -> 55.19287834 | H68: 41 | I68: =H68/$H$71*100 -> 45.05494505 | J68: 53 | K68: =J68/$J$71*100 -> 53 | L68: 34 | M68: =L68/$L$71*100 -> 72.34042553 | N68: 58 | O68: =N68/$N$71*100 -> 58.58585859
E69: Satisfactory | F69: 23 | G69: =F69/$F$71*100 -> 6.824925816 | H69: 1 | I69: =H69/$H$71*100 -> 1.098901099 | J69: 5 | K69: =J69/$J$71*100 -> 5 | L69: 10 | M69: =L69/$L$71*100 -> 21.27659574 | N69: 7 | O69: =N69/$N$71*100 -> 7.070707071
E70: Inadequate | F70: 2 | G70: =F70/$F$71*100 -> 0.5934718101 | H70: 1 | I70: =H70/$H$71*100 -> 1.098901099 | J70: 1 | K70: 0 | L70: 0 | M70: =L70/$L$71*100 -> 0 | N70: 0 | O70: =N70/$N$71*100 -> 0
E71: Total | F71: =SUM(F67:F70) -> 337 | G71: =F71/$F$71*100 -> 100 | H71: =SUM(H67:H70) -> 91 | I71: =H71/$H$71*100 -> 100 | J71: =SUM(J67:J70) -> 100 | K71: =J71/$J$71*100 -> 100 | L71: =SUM(L67:L70) -> 47 | M71: =L71/$L$71*100 -> 100 | N71: =SUM(N67:N70) -> 99 | O71: =N71/$N$71*100 -> 100
N72: Source: Ofsted inspections
B73: 1. Percentages are rounded and may not add to 100.
B74: 2. Please note that a provider can be inspected for more than one phase, resulting in more than one set of inspection judgements.
B75: 3. Where the number of inspections is small, percentages should be treated with caution.
B76: 4. In four instances, no grade was awarded for trainees’ attainment either because the cohort numbers were too small to grade this aspect or because no trainees had completed the course at the time of the inspection.

Sheet Chart 1
B2: Chart 1: Overall effectiveness judgements of initial teacher education provision inspected between 1 September 2008 and 31 August 20121
B5: Number of inspections | C5: Overall effectiveness
C6: Outstanding | D6: Good | E6: Satisfactory | F6: Inadequate | G6: Total
B7: 1 September 2011 - 31 August 2012 (76) | C7: 8 | D7: 55 | E7: 13 | F7: 0 | G7: =SUM(C7:F7) -> 76
B8: 1 September 2010 - 31 August 2011 (90) | C8: 40 | D8: 42 | E8: 8 | F8: 0 | G8: =SUM(C8:F8) -> 90
B9: ="1 September 2009 - 31 August 2010 ("&G9&")" -> 1 September 2009 - 31 August 2010 (151) | C9: 46 | D9: 90 | E9: 13 | F9: 2 | G9: =SUM(C9:F9) -> 151
B10: ="1 September 2008 - 31 August 2009 ("&G10&")" -> 1 September 2008 - 31 August 2009 (96) | C10: 19 | D10: 65 | E10: 12 | F10: 0 | G10: =SUM(C10:F10) -> 96
E11: Source: Ofsted inspections
B34: 1. Please note that a provider can be inspected for more than one phase, resulting in more than one set of inspection judgements.

Sheet Ranges (hidden)
A1: 1 January and 31 March 2011 | B1: 1 April and 30 June 2011 | C1: 1 July and 30 September 2011 | D1: 1 October and 31 December 2011 | E1: OE:SC | F1: ="January 2011" -> January 2011 | G1: Month | H1: Initial teacher education
A2: ="January 2011" -> January 2011 | B2: ="April 2011" -> April 2011 | C2: ="July 2011" -> July 2011 | D2: ="October 2011" -> October 2011 | E2: OE:EY | F2: ="February 2011" -> February 2011 | G2: Month
A3: ="February 2011" -> February 2011 | B3: ="May 2011" -> May 2011 | C3: ="August 2011" -> August 2011 | D3: ="November 2011" -> November 2011 | E3: OE:SF | F3: ="March 2011" -> March 2011 | G3: Month
A4: ="March 2011" -> March 2011 | B4: ="June 2011" -> June 2011 | C4: ="September 2011" -> September 2011 | D4: ="December 2011" -> December 2011 | E4: LM:EPCI | F4: ="April 2011" -> April 2011 | G4: Month
F5: ="May 2011" -> May 2011 | G5: Month
F6: ="June 2011" -> June 2011 | G6: Month
A7: ="January 2011" -> January 2011 | F7: ="July 2011" -> July 2011 | G7: Month
A8: ="February 2011" -> February 2011 | F8: ="August 2011" -> August 2011 | G8: Month
A9: ="March 2011" -> March 2011 | F9: ="September 2011" -> September 2011 | G9: Month
F10: ="October 2011" -> October 2011 | G10: Month
F11: ="November 2011" -> November 2011 | G11: Month
F12: ="December 2011" -> December 2011 | G12: Month

Sheet Chart 2
B2: Chart 2: Overall effectiveness judgements of initial teacher education provision inspected between 1 September 2011 and 31 August 2012 1
B6: Number of inspections | O6: Number of providers
B7: Provision | C7: Overall effectiveness | P7: Overall effectiveness
C8: Outstanding | D8: Good | E8: Satisfactory | F8: Inadequate | G8: Total | O8: Provision | P8: Outstanding | Q8: Good | R8: Satisfactory | S8: Inadequate | T8: Total
B9: Primary initial teacher education (15) | C9: 3 | D9: 10 | E9: 2 | F9: 0 | G9: =SUM(C9:F9) -> 15 | O9: Primary initial teacher education (15) | P9: 3 | Q9: 10 | R9: 2 | S9: 0 | T9: 100
B10: Secondary initial teacher education (14) | C10: 1 | D10: 11 | E10: 2 | F10: 0 | G10: =SUM(C10:F10) -> 14 | O10: Secondary initial teacher education (14) | P10: 1 | Q10: 11 | R10: 2 | S10: 0 | T10: 100
B11: Further education (22) | C11: 0 | D11: 16 | E11: 6 | F11: 0 | G11: =SUM(C11:F11) -> 22 | O11: Further education (22) | P11: 0 | Q11: 16 | R11: 6 | S11: 0 | T11: 100
B12: Employment-based routes (25) | C12: 4 | D12: 18 | E12: 3 | F12: 0 | G12: =SUM(C12:F12) -> 25 | O12: Employment-based routes (25) | P12: 4 | Q12: 18 | R12: 3 | S12: 0 | T12: 100
B13: All initial teacher education provision (76) | C13: =SUM(C9:C12) -> 8 | D13: =SUM(D9:D12) -> 55 | E13: =SUM(E9:E12) -> 13 | F13: 0 | G13: =SUM(C13:F13) -> 76 | O13: All initial teacher education provision (76) | P13: 8 | Q13: 55 | R13: 13 | S13: 0 | T13: 100
G14: Source: Ofsted inspections
B36: 1. Please note that a provider can be inspected for more than one phase, resulting in more than one set of inspection judgements.
